[Event "Titled Tuesday Blitz April 4 Late 2023"]
[White "Harriott, Tyrell"]
[Black "Omelja, Artem"]
[WhiteFideId "2086484"]
[BlackFideId "14119846"]
[WhiteElo "2107"]
[BlackElo "2404"]
[Result "1-0"]
[Round "09"]
[TimeControl "180+2"]
[Date "2023.04.04"]
[WhiteClock "0:00:06"]
[BlackClock "0:00:05"]

1. d4 {[%clk 0:03:00]}  Nf6 {[%clk 0:02:59]} 2. e3 {[%clk 0:03:01]}  b6 {[%clk 0:02:59]} 3. f4 {[%clk 0:03:01]}  Bb7 {[%clk 0:02:58]} 4. Nf3 {[%clk 0:03:01]}  d6 {[%clk 0:02:59]} 5. Bd3 {[%clk 0:03:01]}  g6 {[%clk 0:03:00]} 6. O-O {[%clk 0:03:01]}  Bg7 {[%clk 0:03:00]} 7. Nbd2 {[%clk 0:03:02]}  O-O {[%clk 0:03:01]} 8. f5 {[%clk 0:03:02]}  Nbd7 {[%clk 0:03:00]} 9. Qe1 {[%clk 0:03:02]}  e5 {[%clk 0:03:00]} 10. fxe6 {[%clk 0:03:01]}  fxe6 {[%clk 0:03:01]} 11. Ng5 {[%clk 0:03:02]}  Qe7 {[%clk 0:03:00]} 12. Qh4 {[%clk 0:03:02]}  h6 {[%clk 0:02:57]} 13. Nge4 {[%clk 0:03:02]}  g5 {[%clk 0:02:51]} 14. Nxg5 {[%clk 0:03:01]}  hxg5 {[%clk 0:02:51]} 15. Qxg5 {[%clk 0:03:02]}  e5 {[%clk 0:02:37]} 16. Qh4 {[%clk 0:02:55]}  e4 {[%clk 0:02:35]} 17. Bc4+ {[%clk 0:02:50]}  d5 {[%clk 0:02:31]} 18. Bb3 {[%clk 0:02:51]}  Ba6 {[%clk 0:02:29]} 19. c4 {[%clk 0:02:48]}  c6 {[%clk 0:02:28]} 20. Rf5 {[%clk 0:02:40]}  Qe6 {[%clk 0:02:16]} 21. Rg5 {[%clk 0:02:37]}  dxc4 {[%clk 0:02:04]} 22. Bc2 {[%clk 0:02:37]}  Rae8 {[%clk 0:02:00]} 23. b3 {[%clk 0:02:32]}  c3 {[%clk 0:01:55]} 24. Nc4 {[%clk 0:02:31]}  Nh7 {[%clk 0:01:52]} 25. Rh5 {[%clk 0:02:27]}  Qf6 {[%clk 0:01:34]} 26. Ba3 {[%clk 0:02:09]}  Qxh4 {[%clk 0:01:34]} 27. Rxh4 {[%clk 0:02:09]}  Rf6 {[%clk 0:01:33]} 28. Nd6 {[%clk 0:01:58]}  Ref8 {[%clk 0:01:29]} 29. Nc4 {[%clk 0:01:39]}  c5 {[%clk 0:01:16]} 30. Bxe4 {[%clk 0:01:36]}  b5 {[%clk 0:01:17]} 31. Bxh7+ {[%clk 0:01:32]}  Kf7 {[%clk 0:01:16]} 32. Ne5+ {[%clk 0:01:28]}  Nxe5 {[%clk 0:01:12]} 33. dxe5 {[%clk 0:01:29]}  Rc6 {[%clk 0:01:12]} 34. Be4 {[%clk 0:01:23]}  Rc7 {[%clk 0:01:08]} 35. Rh7 {[%clk 0:01:04]}  b4 {[%clk 0:01:05]} 36. Bc1 {[%clk 0:00:53]}  Kg8 {[%clk 0:01:05]} 37. g3 {[%clk 0:00:44]}  Rf1+ {[%clk 0:00:49]} 38. Kg2 {[%clk 0:00:45]}  Rcf7 {[%clk 0:00:49]} 39. Rh5 {[%clk 0:00:41]}  R7f2+ {[%clk 0:00:48]} 40. Kh3 {[%clk 0:00:41]}  Bc8+ {[%clk 0:00:48]} 41. g4 {[%clk 0:00:39]}  Rg1 {[%clk 0:00:34]} 42. Rg5 {[%clk 0:00:37]}  Kf8 {[%clk 0:00:25]} 43. Bd5 {[%clk 0:00:34]}  Bxe5 {[%clk 0:00:04]} 44. Rxe5 {[%clk 0:00:30]}  Rxg4 {[%clk 0:00:04]} 45. Be6 {[%clk 0:00:26]}  Rgg2 {[%clk 0:00:03]} 46. Bxc8 {[%clk 0:00:23]}  Rxh2+ {[%clk 0:00:03]} 47. Kg4 {[%clk 0:00:23]}  Rhg2+ {[%clk 0:00:04]} 48. Kh4 {[%clk 0:00:22]}  Kg7 {[%clk 0:00:03]} 49. Rg5+ {[%clk 0:00:20]}  Rxg5 {[%clk 0:00:03]} 50. Kxg5 {[%clk 0:00:21]}  Rf1 {[%clk 0:00:03]} 51. e4 {[%clk 0:00:21]}  Kf7 {[%clk 0:00:03]} 52. Bf5 {[%clk 0:00:18]}  Ke7 {[%clk 0:00:03]} 53. Kg4 {[%clk 0:00:18]}  Ke8 {[%clk 0:00:03]} 54. Bg6+ {[%clk 0:00:18]}  Kd7 {[%clk 0:00:02]} 55. Bf5+ {[%clk 0:00:16]}  Kc6 {[%clk 0:00:02]} 56. e5 {[%clk 0:00:16]}  a5 {[%clk 0:00:03]} 57. e6 {[%clk 0:00:17]}  Re1 {[%clk 0:00:03]} 58. Kf4 {[%clk 0:00:16]}  a4 {[%clk 0:00:03]} 59. bxa4 {[%clk 0:00:15]}  c4 {[%clk 0:00:03]} 60. e7 {[%clk 0:00:15]}  Rxe7 {[%clk 0:00:02]} 61. Be3 {[%clk 0:00:13]}  b3 {[%clk 0:00:02]} 62. axb3 {[%clk 0:00:13]}  cxb3 {[%clk 0:00:03]} 63. Rc1 {[%clk 0:00:10]}  c2 {[%clk 0:00:03]} 64. Bxc2 {[%clk 0:00:10]}  bxc2 {[%clk 0:00:04]} 65. Rxc2+ {[%clk 0:00:10]}  Kb7 {[%clk 0:00:05]} 66. a5 {[%clk 0:00:10]}  Ka6 {[%clk 0:00:05]} 67. Bd2 {[%clk 0:00:09]}  Rf7+ {[%clk 0:00:05]} 68. Ke4 {[%clk 0:00:09]}  Rd7 {[%clk 0:00:05]} 69. Ke5 {[%clk 0:00:08]}  Kb7 {[%clk 0:00:05]} 70. Ke6 {[%clk 0:00:09]}  Rh7 {[%clk 0:00:05]} 71. Rb2+ {[%clk 0:00:07]}  Ka8 {[%clk 0:00:05]} 72. Rb5 {[%clk 0:00:07]}  Rh8 {[%clk 0:00:04]} 73. Rd5 {[%clk 0:00:06]}  Rg8 {[%clk 0:00:04]} 74. Ke5 {[%clk 0:00:06]}  Rh8 {[%clk 0:00:04]} 75. Kd4 {[%clk 0:00:06]}  Rh4+ {[%clk 0:00:03]} 76. Kc5 {[%clk 0:00:07]}  Rh8 {[%clk 0:00:04]} 77. Bb4 {[%clk 0:00:07]}  Rc8+ {[%clk 0:00:04]} 78. Kb5 {[%clk 0:00:07]}  Rh8 {[%clk 0:00:04]} 79. Bc5 {[%clk 0:00:07]}  Kb7 {[%clk 0:00:03]} 80. a6+ {[%clk 0:00:08]}  Ka8 {[%clk 0:00:03]} 81. Bb6 {[%clk 0:00:07]}  Rg8 {[%clk 0:00:03]} 82. Bc5 {[%clk 0:00:07]}  Re8 {[%clk 0:00:04]} 83. Rd7 {[%clk 0:00:05]}  Rb8+ {[%clk 0:00:04]} 84. Ka5 {[%clk 0:00:05]}  Rg8 {[%clk 0:00:04]} 85. Ra7+ {[%clk 0:00:06]}  Kb8 {[%clk 0:00:04]} 86. Rb7+ {[%clk 0:00:05]}  Ka8 {[%clk 0:00:04]} 87. Rc7 {[%clk 0:00:05]}  Re8 {[%clk 0:00:03]} 88. Rc6 {[%clk 0:00:05]}  Rg8 {[%clk 0:00:03]} 89. a7 {[%clk 0:00:06]}  Re8 {[%clk 0:00:03]} 90. Kb5 {[%clk 0:00:06]}  Rg8 {[%clk 0:00:03]} 91. Bb6 {[%clk 0:00:07]}  Rg5+ {[%clk 0:00:03]} 92. Ka6 {[%clk 0:00:07]}  Rg8 {[%clk 0:00:03]} 93. Rc7 {[%clk 0:00:06]}  Re8 {[%clk 0:00:03]} 94. Rb7 {[%clk 0:00:06]}  Rg8 {[%clk 0:00:03]} 95. Rc7 {[%clk 0:00:06]}  Re8 {[%clk 0:00:03]} 96. Rd7 {[%clk 0:00:05]}  Rg8 {[%clk 0:00:03]} 97. Bc5 {[%clk 0:00:04]}  Re8 {[%clk 0:00:04]} 98. Kb5 {[%clk 0:00:05]}  Rg8 {[%clk 0:00:04]} 99. Rd5 {[%clk 0:00:05]}  Re8 {[%clk 0:00:04]} 100. Bd6 {[%clk 0:00:04]}  Rg8 {[%clk 0:00:04]} 101. Bb8 {[%clk 0:00:04]}  Re8 {[%clk 0:00:04]} 102. Kc5 {[%clk 0:00:05]}  Rg8 {[%clk 0:00:04]} 103. Kc6 {[%clk 0:00:05]}  Rc8+ {[%clk 0:00:04]} 104. Bc7 {[%clk 0:00:05]}  Rg8 {[%clk 0:00:04]} 105. Rb5 {[%clk 0:00:05]}  Rg6+ {[%clk 0:00:04]} 106. Bd6 {[%clk 0:00:06]}  Kxa7 {[%clk 0:00:05]} 107. Ra5# {[%clk 0:00:06]} 1-0


[Site "https://www.chess.com"]

[Event "Titled Tuesday Blitz April 4 Late 2023"]
[White "Hajiyev, Kanan"]
[Black "Francisco Guecamburu, Candela Be"]
[WhiteFideId "13404148"]
[BlackFideId "160911"]
[WhiteElo "2103"]
[BlackElo "2326"]
[Result "0-1"]
[Round "09"]
[TimeControl "180+2"]
[Date "2023.04.04"]
[WhiteClock "0:00:06"]
[BlackClock "0:00:16"]

1. d4 {[%clk 0:03:00]}  Nf6 {[%clk 0:02:59]} 2. Nf3 {[%clk 0:02:50]}  c5 {[%clk 0:03:00]} 3. c3 {[%clk 0:02:46]}  g6 {[%clk 0:02:59]} 4. Bf4 {[%clk 0:02:46]}  Bg7 {[%clk 0:02:59]} 5. e3 {[%clk 0:02:47]}  O-O {[%clk 0:02:59]} 6. dxc5 {[%clk 0:02:44]}  Nc6 {[%clk 0:02:53]} 7. Bd3 {[%clk 0:02:34]}  Re8 {[%clk 0:02:46]} 8. Bc2 {[%clk 0:02:15]}  b6 {[%clk 0:02:38]} 9. cxb6 {[%clk 0:02:14]}  axb6 {[%clk 0:02:39]} 10. O-O {[%clk 0:02:13]}  e5 {[%clk 0:02:37]} 11. Bg5 {[%clk 0:02:10]}  h6 {[%clk 0:02:37]} 12. Bh4 {[%clk 0:01:58]}  g5 {[%clk 0:02:36]} 13. Bg3 {[%clk 0:01:55]}  d5 {[%clk 0:02:35]} 14. Ba4 {[%clk 0:01:53]}  Bb7 {[%clk 0:02:21]} 15. Bxc6 {[%clk 0:01:51]}  Bxc6 {[%clk 0:02:22]} 16. Bxe5 {[%clk 0:01:40]}  Bb5 {[%clk 0:01:57]} 17. Re1 {[%clk 0:01:37]}  g4 {[%clk 0:01:53]} 18. Bxf6 {[%clk 0:01:28]}  Qxf6 {[%clk 0:01:54]} 19. Nd4 {[%clk 0:01:28]}  Bd7 {[%clk 0:01:54]} 20. Nd2 {[%clk 0:01:25]}  h5 {[%clk 0:01:52]} 21. g3 {[%clk 0:01:17]}  h4 {[%clk 0:01:51]} 22. e4 {[%clk 0:01:10]}  dxe4 {[%clk 0:01:45]} 23. Rxe4 {[%clk 0:00:55]}  Rxe4 {[%clk 0:01:44]} 24. Nxe4 {[%clk 0:00:56]}  Qg6 {[%clk 0:01:44]} 25. Nd2 {[%clk 0:00:35]}  Rd8 {[%clk 0:01:33]} 26. Qc2 {[%clk 0:00:30]}  Qh6 {[%clk 0:01:31]} 27. Re1 {[%clk 0:00:28]}  Bc8 {[%clk 0:01:16]} 28. Nf1 {[%clk 0:00:18]}  hxg3 {[%clk 0:01:07]} 29. Nxg3 {[%clk 0:00:12]}  Qh3 {[%clk 0:01:02]} 30. Qe4 {[%clk 0:00:07]}  Bxd4 {[%clk 0:00:39]} 31. cxd4 {[%clk 0:00:07]}  Be6 {[%clk 0:00:39]} 32. Nf5 {[%clk 0:00:04]}  Qh5 {[%clk 0:00:29]} 33. Ng3 {[%clk 0:00:02]}  Qh6 {[%clk 0:00:23]} 34. Nf5 {[%clk 0:00:03]}  Qg5 {[%clk 0:00:23]} 35. Ng3 {[%clk 0:00:03]}  Rc8 {[%clk 0:00:18]} 36. Qe5 {[%clk 0:00:03]}  Qh4 {[%clk 0:00:17]} 37. Qe4 {[%clk 0:00:02]}  Qg5 {[%clk 0:00:11]} 38. Qe5 {[%clk 0:00:02]}  Qd2 {[%clk 0:00:10]} 39. Qe2 {[%clk 0:00:02]}  Qxd4 {[%clk 0:00:09]} 40. b3 {[%clk 0:00:02]}  Rc3 {[%clk 0:00:08]} 41. Qe5 {[%clk 0:00:01]}  Qd2 {[%clk 0:00:07]} 42. Qe2 {[%clk 0:00:01]}  Qd4 {[%clk 0:00:07]} 43. Qf1 {[%clk 0:00:01]}  Qc5 {[%clk 0:00:07]} 44. Qg2 {[%clk 0:00:01]}  Rc2 {[%clk 0:00:07]} 45. Qf1 {[%clk 0:00:02]}  Qd4 {[%clk 0:00:08]} 46. Qe2 {[%clk 0:00:02]}  Rxe2 {[%clk 0:00:08]} 47. Nxe2 {[%clk 0:00:02]}  Qd2 {[%clk 0:00:08]} 48. Kf1 {[%clk 0:00:03]}  Bd5 {[%clk 0:00:09]} 49. Rc1 {[%clk 0:00:04]}  Bf3 {[%clk 0:00:09]} 50. Re1 {[%clk 0:00:03]}  Qd3 {[%clk 0:00:09]} 51. b4 {[%clk 0:00:02]}  Kg7 {[%clk 0:00:08]} 52. a4 {[%clk 0:00:03]}  f5 {[%clk 0:00:09]} 53. a5 {[%clk 0:00:03]}  bxa5 {[%clk 0:00:09]} 54. bxa5 {[%clk 0:00:04]}  f4 {[%clk 0:00:10]} 55. a6 {[%clk 0:00:05]}  Qxa6 {[%clk 0:00:10]} 56. h3 {[%clk 0:00:04]}  gxh3 {[%clk 0:00:11]} 57. Kg1 {[%clk 0:00:03]}  Qg6+ {[%clk 0:00:11]} 58. Ng3 {[%clk 0:00:02]}  fxg3 {[%clk 0:00:12]} 59. Re7+ {[%clk 0:00:02]}  Kf6 {[%clk 0:00:13]} 60. Re3 {[%clk 0:00:01]}  gxf2+ {[%clk 0:00:12]} 61. Kxf2 {[%clk 0:00:02]}  Qg2+ {[%clk 0:00:13]} 62. Ke1 {[%clk 0:00:03]}  Qg1+ {[%clk 0:00:13]} 63. Kd2 {[%clk 0:00:04]}  Qxe3+ {[%clk 0:00:14]} 64. Kxe3 {[%clk 0:00:04]}  h2 {[%clk 0:00:15]} 65. Kxf3 {[%clk 0:00:04]}  h1=Q+ {[%clk 0:00:16]} 66. Kf4 {[%clk 0:00:05]}  Qh5 {[%clk 0:00:16]} 67. Ke3 {[%clk 0:00:06]}  Qg4 {[%clk 0:00:16]} 0-1


[Site "https://www.chess.com"]

[Event "Titled Tuesday Blitz April 4 Late 2023"]
[White "Kirillov, Dmitry"]
[Black "Fonseca Manrique, Enrique"]
[WhiteFideId "34180572"]
[BlackFideId "5114330"]
[WhiteElo "2111"]
[BlackElo "2519"]
[Result "0-1"]
[Round "09"]
[TimeControl "180+2"]
[Date "2023.04.04"]
[WhiteClock "0:00:45"]
[BlackClock "0:01:14"]

1. d4 {[%clk 0:03:00]}  Nf6 {[%clk 0:03:00]} 2. c4 {[%clk 0:03:00]}  c5 {[%clk 0:03:00]} 3. Nf3 {[%clk 0:02:57]}  cxd4 {[%clk 0:02:59]} 4. Nxd4 {[%clk 0:02:58]}  Nc6 {[%clk 0:03:00]} 5. Nc3 {[%clk 0:02:57]}  e6 {[%clk 0:02:57]} 6. e4 {[%clk 0:02:52]}  Bb4 {[%clk 0:02:56]} 7. Qd3 {[%clk 0:02:50]}  O-O {[%clk 0:02:52]} 8. Bd2 {[%clk 0:02:48]}  d5 {[%clk 0:02:50]} 9. Nxc6 {[%clk 0:02:39]}  bxc6 {[%clk 0:02:49]} 10. e5 {[%clk 0:02:39]}  Nd7 {[%clk 0:02:48]} 11. f4 {[%clk 0:02:39]}  Ba6 {[%clk 0:02:44]} 12. Qf3 {[%clk 0:02:22]}  Nb6 {[%clk 0:02:12]} 13. cxd5 {[%clk 0:02:15]}  Bxf1 {[%clk 0:02:12]} 14. Rxf1 {[%clk 0:02:15]}  cxd5 {[%clk 0:02:09]} 15. b3 {[%clk 0:02:08]}  Rc8 {[%clk 0:02:04]} 16. Qd3 {[%clk 0:02:07]}  Qh4+ {[%clk 0:01:38]} 17. g3 {[%clk 0:01:52]}  Qxh2 {[%clk 0:01:33]} 18. O-O-O {[%clk 0:01:51]}  Bxc3 {[%clk 0:01:28]} 19. Rh1 {[%clk 0:01:33]}  Bxd2+ {[%clk 0:01:24]} 20. Kb1 {[%clk 0:01:31]}  Rc3 {[%clk 0:01:16]} 21. Rxh2 {[%clk 0:00:41]}  Rxd3 {[%clk 0:01:15]} 22. Rhxd2 {[%clk 0:00:42]}  Rxd2 {[%clk 0:01:13]} 23. Rxd2 {[%clk 0:00:43]}  Rc8 {[%clk 0:01:13]} 24. Rc2 {[%clk 0:00:43]}  Rxc2 {[%clk 0:01:13]} 25. Kxc2 {[%clk 0:00:44]}  Kf8 {[%clk 0:01:13]} 26. Kc3 {[%clk 0:00:44]}  Ke7 {[%clk 0:01:14]} 27. Kd4 {[%clk 0:00:45]} 0-1


[Site "https://www.chess.com"]

[Event "Titled Tuesday Blitz April 4 Late 2023"]
[White "Zeynalli, Rashad"]
[Black "feuervogel1000000"]
[WhiteFideId "13403320"]
[WhiteElo "2125"]
[BlackElo "2292"]
[Result "0-1"]
[Round "09"]
[TimeControl "180+2"]
[Date "2023.04.04"]
[WhiteClock "0:00:14"]
[BlackClock "0:01:50"]

1. d4 {[%clk 0:03:00]}  Nf6 {[%clk 0:02:59]} 2. Bf4 {[%clk 0:02:58]}  e6 {[%clk 0:02:58]} 3. e3 {[%clk 0:02:58]}  d5 {[%clk 0:02:58]} 4. Nd2 {[%clk 0:02:58]}  Bd6 {[%clk 0:02:57]} 5. Bg3 {[%clk 0:02:58]}  O-O {[%clk 0:02:56]} 6. Ngf3 {[%clk 0:02:59]}  c5 {[%clk 0:02:56]} 7. c3 {[%clk 0:02:59]}  Qc7 {[%clk 0:02:55]} 8. Bd3 {[%clk 0:02:59]}  Nbd7 {[%clk 0:02:55]} 9. Bh4 {[%clk 0:02:57]}  b6 {[%clk 0:02:53]} 10. Qe2 {[%clk 0:02:54]}  Bb7 {[%clk 0:02:53]} 11. Rd1 {[%clk 0:02:42]}  Ne4 {[%clk 0:02:45]} 12. Bb1 {[%clk 0:02:36]}  f5 {[%clk 0:02:44]} 13. Bg3 {[%clk 0:02:20]}  e5 {[%clk 0:02:34]} 14. Nxe4 {[%clk 0:02:06]}  fxe4 {[%clk 0:02:32]} 15. Ng5 {[%clk 0:02:07]}  Rae8 {[%clk 0:02:27]} 16. dxe5 {[%clk 0:02:01]}  Bxe5 {[%clk 0:02:28]} 17. c4 {[%clk 0:01:32]}  h6 {[%clk 0:02:22]} 18. Nh3 {[%clk 0:01:27]}  d4 {[%clk 0:02:20]} 19. Nf4 {[%clk 0:01:24]}  d3 {[%clk 0:02:19]} 20. Qd2 {[%clk 0:01:15]}  Nf6 {[%clk 0:02:18]} 21. O-O {[%clk 0:01:13]}  Qf7 {[%clk 0:02:13]} 22. f3 {[%clk 0:01:07]}  Qxc4 {[%clk 0:02:09]} 23. fxe4 {[%clk 0:01:03]}  Nxe4 {[%clk 0:02:06]} 24. Qxd3 {[%clk 0:01:03]}  Qxd3 {[%clk 0:02:06]} 25. Bxd3 {[%clk 0:01:00]}  Nxg3 {[%clk 0:02:06]} 26. hxg3 {[%clk 0:01:01]}  Bxb2 {[%clk 0:02:06]} 27. Bc4+ {[%clk 0:00:36]}  Kh7 {[%clk 0:02:03]} 28. Bd3+ {[%clk 0:00:36]}  Be4 {[%clk 0:02:03]} 29. Bb5 {[%clk 0:00:34]}  Re7 {[%clk 0:02:00]} 30. a4 {[%clk 0:00:33]}  Ref7 {[%clk 0:01:52]} 31. Bd7 {[%clk 0:00:22]}  g5 {[%clk 0:01:51]} 32. Ne6 {[%clk 0:00:16]}  Rxf1+ {[%clk 0:01:50]} 33. Rxf1 {[%clk 0:00:17]}  Rxf1+ {[%clk 0:01:50]} 34. Kxf1 {[%clk 0:00:18]}  c4 {[%clk 0:01:50]} 35. Ke2 {[%clk 0:00:13]}  c3 {[%clk 0:01:50]} 36. Nd4 {[%clk 0:00:13]}  c2 {[%clk 0:01:50]} 37. Nxc2 {[%clk 0:00:14]}  Bxc2 {[%clk 0:01:50]} 0-1


[Site "https://www.chess.com"]

[Event "Titled Tuesday Blitz April 4 Late 2023"]
[White "Mei, Austin"]
[Black "Djordjevic, Dejan N"]
[WhiteFideId "30948479"]
[BlackFideId "913316"]
[WhiteElo "2125"]
[BlackElo "2261"]
[Result "1-0"]
[Round "09"]
[TimeControl "180+2"]
[Date "2023.04.04"]
[WhiteClock "0:00:50"]
[BlackClock "0:00:03"]

1. e4 {[%clk 0:02:59]}  c5 {[%clk 0:02:59]} 2. Nf3 {[%clk 0:02:59]}  Nc6 {[%clk 0:02:59]} 3. Bb5 {[%clk 0:02:57]}  g6 {[%clk 0:02:59]} 4. O-O {[%clk 0:02:52]}  Bg7 {[%clk 0:02:58]} 5. Bxc6 {[%clk 0:02:47]}  dxc6 {[%clk 0:02:58]} 6. d3 {[%clk 0:02:46]}  e5 {[%clk 0:02:58]} 7. h3 {[%clk 0:02:46]}  Qc7 {[%clk 0:02:55]} 8. Be3 {[%clk 0:02:46]}  b6 {[%clk 0:02:55]} 9. a4 {[%clk 0:02:45]}  a5 {[%clk 0:02:54]} 10. Nbd2 {[%clk 0:02:45]}  Rb8 {[%clk 0:02:53]} 11. Nc4 {[%clk 0:02:45]}  Be6 {[%clk 0:02:52]} 12. c3 {[%clk 0:02:35]}  h6 {[%clk 0:02:36]} 13. Re1 {[%clk 0:02:35]}  Ne7 {[%clk 0:02:35]} 14. Qe2 {[%clk 0:02:32]}  O-O {[%clk 0:02:17]} 15. Na3 {[%clk 0:02:32]}  f5 {[%clk 0:02:11]} 16. exf5 {[%clk 0:02:31]}  Nxf5 {[%clk 0:01:55]} 17. Bf4 {[%clk 0:02:11]}  exf4 {[%clk 0:01:47]} 18. Qxe6+ {[%clk 0:02:11]}  Kh7 {[%clk 0:01:47]} 19. Nc4 {[%clk 0:02:07]}  Rf6 {[%clk 0:01:39]} 20. Qe4 {[%clk 0:02:05]}  Nd6 {[%clk 0:01:33]} 21. Nxd6 {[%clk 0:02:01]}  Qxd6 {[%clk 0:01:32]} 22. d4 {[%clk 0:02:01]}  cxd4 {[%clk 0:01:31]} 23. Nxd4 {[%clk 0:02:00]}  Rbf8 {[%clk 0:01:00]} 24. Rad1 {[%clk 0:01:58]}  R8f7 {[%clk 0:00:30]} 25. Ne6 {[%clk 0:01:54]}  Qb8 {[%clk 0:00:17]} 26. Nd8 {[%clk 0:01:48]}  Rc7 {[%clk 0:00:13]} 27. Ne6 {[%clk 0:01:26]}  Rcf7 {[%clk 0:00:12]} 28. Rd8 {[%clk 0:01:24]}  Qb7 {[%clk 0:00:11]} 29. Nxg7 {[%clk 0:01:18]}  Rxg7 {[%clk 0:00:08]} 30. Qe8 {[%clk 0:01:18]}  g5 {[%clk 0:00:07]} 31. Qh8+ {[%clk 0:01:11]}  Kg6 {[%clk 0:00:07]} 32. Ree8 {[%clk 0:00:50]}  b5 {[%clk 0:00:03]} 33. Rg8 {[%clk 0:00:50]} 1-0


[Site "https://www.chess.com"]

[Event "Titled Tuesday Blitz April 4 Late 2023"]
[White "lolliNOPE"]
[Black "Dudzinski, Pawel"]
[BlackFideId "1117890"]
[WhiteElo "2167"]
[BlackElo "2099"]
[Result "1-0"]
[Round "09"]
[TimeControl "180+2"]
[Date "2023.04.04"]
[WhiteClock "0:00:30"]
[BlackClock "0:00:01"]

1. e4 {[%clk 0:02:55]}  c6 {[%clk 0:02:57]} 2. d4 {[%clk 0:02:55]}  d5 {[%clk 0:02:55]} 3. Nc3 {[%clk 0:02:56]}  g6 {[%clk 0:02:55]} 4. Nf3 {[%clk 0:02:53]}  Bg7 {[%clk 0:02:54]} 5. exd5 {[%clk 0:02:52]}  cxd5 {[%clk 0:02:54]} 6. Bd3 {[%clk 0:02:52]}  Nc6 {[%clk 0:02:54]} 7. Ne2 {[%clk 0:02:46]}  Bg4 {[%clk 0:02:53]} 8. Bb5 {[%clk 0:02:34]}  Bxf3 {[%clk 0:02:52]} 9. gxf3 {[%clk 0:02:34]}  e6 {[%clk 0:02:42]} 10. c3 {[%clk 0:02:27]}  Qb6 {[%clk 0:02:38]} 11. Bd3 {[%clk 0:02:22]}  Nge7 {[%clk 0:02:35]} 12. Ng3 {[%clk 0:02:20]}  h5 {[%clk 0:02:15]} 13. Bg5 {[%clk 0:02:07]}  h4 {[%clk 0:02:04]} 14. Ne2 {[%clk 0:02:04]}  O-O-O {[%clk 0:02:04]} 15. b4 {[%clk 0:02:01]}  f6 {[%clk 0:01:52]} 16. Be3 {[%clk 0:02:00]}  Bh6 {[%clk 0:01:45]} 17. a4 {[%clk 0:01:58]}  Nf5 {[%clk 0:01:21]} 18. Qd2 {[%clk 0:01:55]}  Nxe3 {[%clk 0:00:41]} 19. fxe3 {[%clk 0:01:54]}  Ne7 {[%clk 0:00:40]} 20. a5 {[%clk 0:01:51]}  Qc7 {[%clk 0:00:38]} 21. b5 {[%clk 0:01:46]}  Qd6 {[%clk 0:00:33]} 22. f4 {[%clk 0:01:35]}  e5 {[%clk 0:00:31]} 23. fxe5 {[%clk 0:01:35]}  fxe5 {[%clk 0:00:32]} 24. O-O {[%clk 0:01:27]}  e4 {[%clk 0:00:30]} 25. Bc2 {[%clk 0:01:24]}  Nf5 {[%clk 0:00:30]} 26. Nf4 {[%clk 0:01:20]}  Rdf8 {[%clk 0:00:24]} 27. Bb3 {[%clk 0:01:11]}  Nxe3 {[%clk 0:00:22]} 28. Qxe3 {[%clk 0:01:09]}  Rxf4 {[%clk 0:00:21]} 29. Qh3+ {[%clk 0:01:06]}  Kb8 {[%clk 0:00:19]} 30. Rxf4 {[%clk 0:01:05]}  Bxf4 {[%clk 0:00:20]} 31. Rf1 {[%clk 0:01:02]}  g5 {[%clk 0:00:18]} 32. Qf5 {[%clk 0:00:59]}  Bxh2+ {[%clk 0:00:17]} 33. Kh1 {[%clk 0:00:59]}  Bf4 {[%clk 0:00:16]} 34. Bxd5 {[%clk 0:00:58]}  e3 {[%clk 0:00:14]} 35. Bf3 {[%clk 0:00:56]}  Re8 {[%clk 0:00:11]} 36. Qf7 {[%clk 0:00:54]}  Qe7 {[%clk 0:00:11]} 37. Qd5 {[%clk 0:00:52]}  Bg3 {[%clk 0:00:10]} 38. a6 {[%clk 0:00:48]}  e2 {[%clk 0:00:09]} 39. Bxe2 {[%clk 0:00:49]}  Rd8 {[%clk 0:00:03]} 40. Qxb7+ {[%clk 0:00:47]}  Qxb7+ {[%clk 0:00:03]} 41. axb7 {[%clk 0:00:48]}  Kxb7 {[%clk 0:00:03]} 42. Bf3+ {[%clk 0:00:48]}  Kb6 {[%clk 0:00:03]} 43. Be2 {[%clk 0:00:48]}  Re8 {[%clk 0:00:03]} 44. Rf6+ {[%clk 0:00:46]}  Kc7 {[%clk 0:00:03]} 45. Bf3 {[%clk 0:00:45]}  h3 {[%clk 0:00:03]} 46. Rf7+ {[%clk 0:00:43]}  Kb6 {[%clk 0:00:03]} 47. Bg2 {[%clk 0:00:39]}  Re1+ {[%clk 0:00:02]} 48. Bf1 {[%clk 0:00:38]}  Bf4 {[%clk 0:00:02]} 49. Kg1 {[%clk 0:00:37]}  g4 {[%clk 0:00:02]} 50. Rxf4 {[%clk 0:00:37]}  g3 {[%clk 0:00:02]} 51. Rf3 {[%clk 0:00:35]}  g2 {[%clk 0:00:02]} 52. Rf5 {[%clk 0:00:31]}  h2+ {[%clk 0:00:01]} 53. Kxg2 {[%clk 0:00:29]}  h1=Q+ {[%clk 0:00:01]} 54. Kxh1 {[%clk 0:00:30]}  Rxf1+ {[%clk 0:00:01]} 55. Rxf1 {[%clk 0:00:30]} 1-0


[Site "https://www.chess.com"]